Cogmind - Beta 13 @@@ ROGUE MODE // 2024.05.23 @ 13:42:50 Player: KingCain Result: Destroyed by G-34 Mercenary with Small Laser Performance ------------- Evolutions (1) 500 Regions Visited (2) 400 Robots Destroyed (34) 170 Value Destroyed (623) 623 Prototype IDs (2) 40 Alien Tech Used (0) 0 Bonus (19) 19 TOTAL SCORE: 1752 Bonus ------- High Alert Combat Kills 19 Cogmind --------- Core Integrity 0/400 Matter 111/300 Energy 100/100 System Corruption 1% Temperature Cool (12) Movement Core (350) Ox6 Location -9/Materials Parts ------- > --- POWER (2) -------- (None) > --- PROPULSION (3) --- (None) > --- UTILITY (2) ------ Large Storage Unit > --- WEAPON (2) ------- (None) > --- INVENTORY (15) --- Cooling System Huge Storage Unit High-capacity Battery (250) Signal Interpreter Peak State ------------ > --- POWER ------------ Ion Engine Light Ion Engine > --- PROPULSION ------- Light Treads Light Treads > --- UTILITY ---------- Large Storage Unit Light Armor Plating > --- WEAPON ----------- Rocket Launcher Rocket Launcher > --- INVENTORY -------- Huge Storage Unit High-capacity Battery Signal Interpreter Grenade Launcher [Rating: 10] Favorites ----------- Power Ion Engine Engine Ion Engine Propulsion Light Treads Treads Light Treads Leg Aluminum Leg Wheel Wheel Utility Light Armor Plating Device Improved Terrain Scanner Storage Large Storage Unit Protection Light Armor Plating Weapon Grenade Launcher Energy Gun EM Pulse Gun Ballistic Gun Light Assault Rifle Ballistic Cannon Light Cannon Launcher Grenade Launcher Special Weapon Mining Laser Build | -11 -10 -9 ------- Run | Yrd Mat Mat Slots Evolved 2 | . . 2 Power 1 | . . 1 Propulsion 1 | . . 1 Utility . | . . . Weapon . | . . . Parts Attached 33 | 14 7 12 Power 4 | 2 . 2 Engine 4 | 2 . 2 Core . | . . . Reactor . | . . . Propulsion 8 | 4 1 3 Treads 4 | 2 1 1 Leg 1 | . . 1 Wheel 3 | 2 . 1 Hover . | . . . Flight . | . . . Utility 10 | 4 4 2 Device 3 | 3 . . Storage 4 | 1 3 . Processor . | . . . Hackware . | . . . Protection 3 | . 1 2 Artifact . | . . . Weapon 11 | 4 2 5 Energy Gun 1 | 1 . . Energy Cannon . | . . . Ballistic Gun 3 | 2 . 1 Ballistic Cannon 1 | . 1 . Launcher 5 | . 1 4 Special Weapon 1 | 1 . . Impact Weapon . | . . . Slashing Weapon . | . . . Piercing Weapon . | . . . Special Melee Weapon . | . . . Unidentified Prototypes . | . . . Parts Lost 15 | . . 15 Power 3 | . . 3 Propulsion 5 | . . 5 Utility 2 | . . 2 Weapon 5 | . . 5 Highest Loss Streak 8 | . . 8 To Critical Strikes . | . . . Average Slot Usage (%) 86 | . 99 70 Engine 13 | . 14 12 Treads 22 | . 27 15 Leg 1 | . . 2 Wheel 1 | . . 3 Storage 12 | . 14 11 Protection 11 | . 13 8 Energy Gun 1 | . 3 . Ballistic Cannon 7 | . 10 4 Launcher 12 | . 13 10 Naked Turns . | . . . Heaviest Build 39 | 14 34 39 Greatest Support 40 | 40 40 40 Greatest Overweight (x) 2 | . 1 2 Average Overweight (x) . | . . . Largest Inventory Capacity 25 | 8 25 15 Average Capacity 11 | 7 12 15 Most Carried 8 | 4 8 6 Average Carried 3 | 2 4 4 Final Capacity 15 | 8 15 15 Final Carried 4 | 1 4 4 Class Distribution -------------------- 93% | Mutant 6% | Scavenger-Mutant Dominant Class ---------------- Mutant | -10/Materials Mutant | -9/Materials Resources | -11 -10 -9 ----------- Run | Yrd Mat Mat Matter Collected 586 | 324 141 121 Remotely . | . . . Salvage Created 636 | 282 97 257 Parts 57 | 21 11 25 Haulers Intercepted . | . . . Recyclers Shooed 2 | 1 . 1 Parts Field Recycled . | . . . Retrieved Matter . | . . . Parts Self-Destructed . | . . . Prevented . | . . . Kills | -11 -10 -9 ------- Run | Yrd Mat Mat Combat Hostiles Destroyed 18 | . 5 13 Cannons 5 | . 3 2 AOE 13 | . 2 11 Classes Destroyed 8 | 3 4 1 Worker 6 | 4 . 2 Builder 4 | . 1 3 Tunneler 4 | 4 . . Recycler 1 | 1 . . Watcher 1 | . 1 . Swarmer 6 | . 3 3 Grunt 9 | . 2 7 Sentry 3 | . . 3 Best Kill Streak 8 | 5 3 8 Combat Bots Only 7 | . 3 7 Max Kills in Single Turn 6 | 2 2 6 Gunslinging . | . . . Exploded 6 | . 2 6 Melee . | . . . Uniques/NPCs Destroyed . | . . . Combat | -11 -10 -9 -------- Run | Yrd Mat Mat Hostile Shots Fired 199 | . 16 183 Missed 51 | . 6 45 Damage Taken 2058 | 160 122 1776 Core 457 | 49 6 402 Absorbed by Shields . | . . . Regen/Repaired (Parts) 70 | . 70 . Core Remaining (%) 79 | 80 78 . Volleys Fired 70 | 40 9 21 Largest 2 | 2 2 2 Hottest 140 | 140 70 66 Shots Fired 103 | 55 13 35 Gun 48 | 44 2 2 Cannon 24 | . 7 17 Launcher 20 | . 4 16 Special 11 | 11 . . Kinetic 40 | 14 7 19 Thermal 11 | 11 . . Explosive 20 | . 4 16 Electromagnetic 32 | 30 2 . Robot Hit Streak 8 | 8 4 8 Robot Miss Streak 3 | 3 3 3 Penetration Max . | . . . Secondary Targets . | . . . Shots Hit Robots 50 | 22 6 22 Core Hits 46 | 12 7 27 Critical Kills . | . . . Critical Parts Destroyed . | . . . Critical Strikes 1 | 1 . . Corrupt 1 | 1 . . Melee Attacks . | . . . Impact . | . . . Slashing . | . . . Piercing . | . . . Sneak Attacks . | . . . Combat Hostiles . | . . . Follow-up Attacks . | . . . Damage Inflicted 1823 | 345 243 1235 Guns 294 | 282 12 . Cannons 267 | . 78 189 Explosions 1238 | 39 153 1046 Melee . | . . . Ramming . | . . . Kinetic 323 | 56 78 189 Thermal 63 | 63 . . Explosive 1199 | . 153 1046 Electromagnetic 238 | 226 12 . Impact . | . . . Slashing . | . . . Piercing . | . . . Highest Corruption 1 | . . 1 Average Corruption 1 | . . 1 Corruption Purged . | . . . Corruption Blocked . | . . . Effects 3 | . . 3 Data Loss (minor) 1 | . . 1 Data Loss (major) 2 | . . 2 Overload Shots . | . . . Overflow Damage 84 | . 6 78 Projectiles . | . . . Explosions 84 | . 6 78 Melee . | . . . Knockbacks 3 | . . 3 Impact . | . . . Kinetic 3 | . . 3 Secondary . | . . . Self-Inflicted Damage 221 | . 34 187 Shots 10 | . 1 9 Rammed . | . . . Targets Rammed . | . . . Kicked . | . . . Crushed . | . . . Highest Temperature 96 | 80 36 96 Average Temperature 31 | 26 14 44 Received Heat Transfer 735 | . 18 717 Siege Activations . | . . . Robots Corrupted . | . . . Combat Hostiles . | . . . Parts Fried . | . . . Impact Corruptions . | . . . Robots Melted . | . . . Combat Hostiles . | . . . Parts Melted . | . . . Heat Transferred 50 | 50 . . Parts Sabotaged . | . . . Parts Stolen . | . . . Parts Stripped . | . . . Power Chain Reactions 1 | 1 . . Alert | -11 -10 -9 ------- Run | Yrd Mat Mat Peak Influence 443 | 45 131 443 Initial 13 | . . 13 Average 91 | 22 28 239 Maximum Alert Level 2 | . . 2 Low Security (%) 80 | 100 100 37 Level 1 12 | . . 40 Level 2 6 | . . 22 Level 3 . | . . . Level 4 . | . . . Level 5 . | . . . High Security . | . . . Max Security . | . . . Squads Dispatched 4 | . 2 2 Investigation 3 | . 2 1 Extermination . | . . . Reinforcement 1 | . . 1 Assault . | . . . Garrison . | . . . Intercept . | . . . Searches Triggered . | . . . Construction Impeded 1 | . . 1 Haulers Reinforced . | . . . Active Scanning Responses . | . . . Cargo Convoy Interrupts . | . . . Stealth | -11 -10 -9 --------- Run | Yrd Mat Mat Distress Signals 2 | . . 2 Communications Jammed . | . . . Distress Signals . | . . . Times Spotted 26 | . 8 18 Peak Tracking Total 7 | . 3 7 Tactical Retreats . | . . . Traps | -11 -10 -9 ------- Run | Yrd Mat Mat Traps Triggered 1 | . 1 . Indirectly . | . . . Trap Hack Attempts . | . . . Triggered . | . . . Disarmed . | . . . Reprogrammed . | . . . Reused . | . . . Traps Extracted . | . . . Installed . | . . . Triggered . | . . . Machines | -11 -10 -9 ---------- Run | Yrd Mat Mat Machines Disabled 2 | . . 2 Max in Single Turn 1 | . . 1 Machines Repaired . | . . . Machines Dismantled . | . . . Machines Sabotaged . | . . . Overloaded Fab Kills . | . . . Hacking | -11 -10 -9 --------- Run | Yrd Mat Mat Machines Accessed 7 | . 4 3 Terminals 5 | . 2 3 Fabricators . | . . . Repair Stations 1 | . 1 . Recycling Units 1 | . 1 . Scanalyzers . | . . . Garrison Access . | . . . Total Hacks 23 | . 15 8 Successful 10 | . 6 4 Failed 13 | . 9 4 Catastrophic 3 | . 1 2 Database Lockouts . | . . . Manual . | . . . Terminals 16 | . 8 8 Fabricators . | . . . Repair Stations 3 | . 3 . Recycling Units 4 | . 4 . Scanalyzers . | . . . Garrison Access . | . . . Terminal Hacks 7 | . 3 4 Prototype ID Bank 1 | . . 1 Scanalyzer Index 1 | . . 1 Alert Level 2 | . 1 1 Unreport Threat 1 | . 1 . Hauler Manifests 1 | . 1 . Zone Layout 1 | . . 1 Fabricator Hacks . | . . . Repair Station Hacks 2 | . 2 . Scan Component 1 | . 1 . Repair 1 | . 1 . Recycling Unit Hacks 1 | . 1 . Report Inventory 1 | . 1 . Scanalyzer . | . . . Garrison Access Hacks . | . . . Unauthorized Hacks . | . . . Terminals . | . . . Fabricators . | . . . Repair Stations . | . . . Recycling Units . | . . . Scanalyzers . | . . . Garrison Access . | . . . Data Cores Recovered . | . . . Used . | . . . Hacking Detections 6 | . 4 2 Full Trace Events 6 | . 4 2 Feedback Events 1 | . . 1 Corruption 1 | . . 1 Feedback Blocked . | . . . Robot Schematics Acquired . | . . . Robots Built . | . . . Authchips . | . . . Time . | . . . Total Robot Build Rating . | . . . Part Schematics Acquired . | . . . Parts Built . | . . . Authchips . | . . . Time . | . . . Total Part Build Rating . | . . . Parts Repaired 1 | . 1 . Time 26 | . 26 . Parts Recycled . | . . . Recycled Matter . | . . . Retrieved Matter . | . . . Retrieved Components . | . . . Parts Scanalyzed . | . . . Part Schematics Acquired . | . . . Parts Damaged . | . . . Bothacking | -11 -10 -9 ------------ Run | Yrd Mat Mat Used RIF Installer . | . . . Robots Hacked . | . . . Non-combat . | . . . Combat . | . . . Robot Hacks Applied . | . . . Relay Couplers Released . | . . . Fabnet Peak Effective % . | . . . Robots Rewired . | . . . Allies Hacked . | . . . Hacks Repelled . | . . . Allies | -11 -10 -9 -------- Run | Yrd Mat Mat Total Allies . | . . . Largest Group . | . . . Highest-Rated Group . | . . . Highest-Rated Ally . | . . . Total Orders . | . . . Ally Attacks . | . . . Total Damage . | . . . Kills . | . . . Allies Corrupted . | . . . Allies Melted . | . . . Intel | -11 -10 -9 ------- Run | Yrd Mat Mat Robot Analysis Total . | . . . Derelict Logs Recovered . | . . . Drone Launches . | . . . Drone Recoveries . | . . . Exploration | -11 -10 -9 ------------- Run | Yrd Mat Mat Turns Passed 1584 | 506 594 484 Spaces Moved 767 | 238 323 206 Core 1 | 1 . . Treads 727 | 213 323 191 Legs 8 | . . 8 Wheels 31 | 24 . 7 Hover . | . . . Flight . | . . . Fastest Speed 50 | 50 160 110 Average Speed 163 | 152 160 181 Slowest Speed 260 | 160 240 260 Overloaded Moves . | . . . Propulsion Burnouts . | . . . Robots Hopped . | . . . Cave-ins Triggered 1 | 1 . . Exploration Rate (%) 27 | 12 54 16 Regions Visited 2 Branch Regions . Pre-discovered Areas . | . . . Known Exits Taken . | . . . Unknown Exits Taken 2 | 1 1 . Scrap Searched . | . . . Spaces Dug 8 | 8 . . Terrain Destroyed 120 | 13 27 80 Melee . | . . . Projectile 8 | 8 . . AOE 112 | 5 27 80 Terrain Rammed . | . . . Walls Destroyed . | . . . Machines Disabled . | . . . Actions | -11 -10 -9 --------- Run | Yrd Mat Mat Total 974 | 304 389 281 Wait 51 | . 24 27 Move 765 | 237 322 206 Hop . | . . . Pick Up 35 | 8 15 12 Fast Attach 5 | 5 . . Attach 13 | 2 2 9 Detach 1 | . 1 . Swap 15 | 7 5 3 Drop 19 | 5 11 3 Fire 70 | 40 9 21 Melee . | . . . Ram . | . . . Kick . | . . . Crush . | . . . Escape Stasis . | . . . Rewire . | . . . Trap . | . . . Miscellaneous . | . . . Route ------- -11/Scrapyard -10/Materials (discovered 2 exits: *Mat / [*Min]) -9/Materials History --------- Turn | Location | Event 13 | -11/Scrapyard | Discovered new exit (range 16) 415 | -11/Scrapyard | Crushed by falling debris 507 | -11/Scrapyard | Entered Materials 508 | -10/Materials | Build established: Mutant 691 | -10/Materials | Discovered new exit (range 8) 871 | -10/Materials | Discovered new exit (range 16) 1020 | -10/Materials | Repaired Lgt. Treads 1101 | -10/Materials | Entered another Materials area 1101 | -9/Materials | Evolved 2 slots: Power x1, Propulsion x1 1417 | -9/Materials | Destroyed 7 combat bots 1427 | -9/Materials | Lost 8 parts (2p2n1u3w) 1560 | -9/Materials | Core integrity fell below 50% 1578 | -9/Materials | Core integrity fell below 20% 1585 | -9/Materials | Destroyed by G-34 Mercenary with Small Laser Last Messages --------------- 01458_ U-05 Engineer builds a Wall. 01462_ U-05 Engineer lays Concrete. 01465_ U-05 Engineer builds a Wall. 01466_ U-05 Engineer lays Concrete. 01469_ System corrupted: Substantial component data lost. 01470_ U-05 Engineer lays Concrete. 01471_ U-05 Engineer builds a Wall. 01478_ Acquired Cooling System. 01493_ U-05 Engineer builds a Door. 01512_ Rocket Launcher destroyed. 01531_ System corrupted: Component data lost. 01543_ Wheel destroyed. 01545_ Aluminum Leg destroyed. 01553_ Lgt. Treads destroyed. 01553_ Lgt. Armor Plating destroyed. 01569_ Ion Engine destroyed. 01573_ U-05 Engineer lays Concrete. 01574_ U-05 Engineer builds a Wall. 01575_ Hvy. Assault Rifle destroyed. 01578_ U-05 Engineer builds a Wall. Map ----- +----------------------------------------------------+ | ????????######+############??????????????????????? | | ????????# #??????????????????????????????? | | ????????# """ "" #??????????????????????????????? | | ????????# """ """#??????????????????????????????? | | ????????# """ R"#??????????????????????????????? | | ######### """#??????????????????????????????? | | # # = #??????????????????????????????? | | #""" " # !% ! #??????????????????????????????? | | #""" # ! #??????????????????????????????? | | #""" #+##### #######??????????????????????????? | | # # ????????????????????????? | | #""" + ????????????????????????? | | #""" #% ????????????????????????? | | #"" # #####+#### ????????????????????????? | | # # # ## # ????????????????????????? | | # # ## # ????????????????????????? | | # ! # ## = # ????????????????????????? | | ####+##+#### ## ] ##????????????????????????? | | ???# #### ## ] #?????????????????????????? | | ???# # #?????????????????????????? | | ???# # #####?????????????????????? | | ?### ###+### # # u #?????????????????????? | | ?# # # # u#?????????????????????? | | ?# # # ""T"" # #?????????????????????? | | ?# # ## """"" # #?????????????????????? | | ?# # ########## @ ###########???????????? | | ?########### ##???????# ## #???????????? | | ??# # ##??###### gg##""" #???????????? | | ??# # ##### ##/###""" #???????????? | | ??# # #""" #???????????? | | ??# # + #???????????? | | ??# + ##### ##+###""" #???????????? | | ??# """ # # #?## ## ?#""" #???????????? | | ??# """ # #??# ## ?#""" #???????????? | | ??# """ ### ##??# ## ## #???????????? | | ??# # #### /^ ###########???????????? | | ??########## + ## !! ?????????????????????? | | ???????????# ######## !]#?????????????????????? | | ???????????# #??????# #?????????????????????? | | ???????????# #??????#####?????????????????????? | | ???????????# #????????????????????????????????? | | ???????????######????????????????????????????????? | | ?????????????????????????????????????????????????? | | | | | | | | | | | | | | | +----------------------------------------------------+ Best States ------------- Heat Dissipation 28 Energy Generation 15 Energy Capacity 275 Matter Stores 300 Matter Capacity 300 Sight Range 16 Terrain Scan Range 16 Terrain Scan Density 10 Armor Coverage 150 Evasion (%) 42 Recoil Reduction 2 Item Schematics ----------------- None Robot Schematics ------------------ None Fabricated ------------ Nothing Alien Tech Used ----------------- None Achievements -------------- Quick And Dirty Shopping List Challenges ------------ None Game ------ Seed CoilCannonTerrabomb Manual? 0 Play Time 00:29:08 Cumulative 4.2 hours Start 2024.05.23 @ 12:48:41 End 2024.05.23 @ 13:42:50 Sessions 1 Manual Loads 0 Difficulty Rogue Special Mode None Game No. 10 Rogue 10 Adventurer 0 Explorer 0 Win Type - Total 0 Types 0/0/0/0/0/0/0/0/0 Lore% 3 Gallery% 9 Achievement% 10 Wizard Run 0 Options --------- Layout 0 ASCII 0 Keyboard 0 Movement Arrows Keybinds 0 Fullscreen 1 Font 18/SmallcapsGlow Map View 38x25 Zoom Use 99% Tactical HUD 1 Map Filters NONE Filters NONE Steam 1 RUN: f20bcdc5-5dfa-4390-ab81-7af9bb0c3e8f